bitfinex-derivatives/quotes_SOLF0:USTF0_20241005
["timestamp","ask_amount","ask_price","bid_price","bid_amount"]
[1728159175762,6.2024,141.89,141.85,3.5248]
[1728159175964,9.73,141.87,141.85,3.5248]
[1728159176160,9.73,141.87,141.85,3.525]
[1728159178767,9.73,141.87,141.84,4.82]
[1728159178952,9.73,141.87,141.84,8.3452]
[1728159179963,6.2024,141.89,141.84,4.82]
[1728159179964,9.73,141.86,141.84,4.82]
[1728159180153,9.73,141.86,141.83,4.94502]
[1728159182273,13.2547,141.86,141.83,4.94502]
[1728159183174,2.6783,141.89,141.83,0.12502]
[1728159183175,9.73,141.84,141.83,0.12502]
[1728159186365,13.2552,141.84,141.83,0.12502]
[1728159186876,3.5252,141.84,141.83,0.12502]
[1728159187172,9.73,141.84,141.83,0.12502]
[1728159187764,3.5247,141.87,141.83,3.65042]
[1728159187973,9.73,141.86,141.83,3.65042]
[1728159189973,1.3555,141.88,141.83,0.12502]
[1728159190176,9.73,141.85,141.84,3.5251]
[1728159191269,9.73,141.85,141.83,3.65042]
[1728159196175,9.73,141.85,141.83,0.12502]
[1728159197490,1.3555,141.88,141.83,0.12502]
[1728159197679,9.73,141.85,141.83,3.65022]
[1728159200285,1.3555,141.88,141.83,0.12502]
[1728159200492,9.73,141.86,141.84,3.5251]
[1728159200693,9.73,141.86,141.84,8.3451]
[1728159205099,9.73,141.88,141.85,3.5248]
[1728159208199,2.6783,141.89,141.86,3.5247]
[1728159208397,9.73,141.89,141.86,3.5247]
[1728159208593,9.73,141.89,141.87,4.82]
[1728159210103,7.5488,141.93,141.87,4.82]
[1728159210395,9.73,141.9,141.87,8.3443]
[1728159212497,9.73,141.89,141.87,8.3443]
[1728159213992,3.5238,141.9,141.87,8.3443]
[1728159214192,9.73,141.88,141.87,8.3443]
[1728159218501,9.73,141.88,141.87,4.82]
[1728159222610,3.524,141.89,141.87,4.82]
[1728159222912,13.254,141.89,141.87,4.82]
[1728159228213,3.524,141.89,141.87,4.82]
[1728159228929,3.5235,141.91,141.88,3.5241]
[1728159238518,3.5235,141.91,141.87,8.3444]
[1728159238519,3.5238,141.9,141.87,8.3444]
[1728159249426,9.73,141.91,141.87,8.3444]
[1728159249427,9.73,141.92,141.87,8.3444]
[1728159249633,3.5236,141.91,141.87,8.3444]
[1728159258750,3.5236,141.91,141.88,3.5242]
[1728159260647,3.5236,141.91,141.88,8.3442]
[1728159265353,3.5236,141.91,141.88,3.5242]
[1728159265859,3.5239,141.9,141.87,8.3444]
[1728159268249,3.5239,141.9,141.87,4.82]
[1728159269360,2.7288,141.93,141.88,9.73]
[1728159269553,4.93120749,141.92,141.89,9.73]
[1728159269758,2.7288,141.93,141.89,9.73]
[1728159270963,6.2519,141.93,141.9,3.5236]
[1728159271962,15.9819,141.93,141.9,3.5236]
[1728159283177,3.5233,141.92,141.89,3.5239]
[1728159284672,86.68763974,141.95,141.92,3.5231]
[1728159285476,0.12502,141.95,141.94,13.2527]
[1728159285672,0.12502,141.95,141.94,9.73]
[1728159286076,0.12502,141.95,141.94,13.2527]
[1728159286575,3.64612,142.01,141.97,3.5218]
[1728159286774,4.93241383,142.0,141.97,18.0718]
[1728159286988,3.64612,142.01,141.97,14.55]
[1728159287175,4.9293865,142.0,141.98,3.5216]
[1728159287379,0.12502,142.01,141.98,3.5216]
[1728159288972,3.64602,142.01,141.98,3.5216]
[1728159289381,3.64602,142.01,141.99,13.2513]
[1728159289382,0.12502,142.01,141.99,13.2513]
[1728159290885,0.12502,142.01,141.99,3.5213]
[1728159291076,0.12502,142.01,141.99,13.2513]
[1728159291884,0.12502,142.01,141.99,9.73]
[1728159292276,0.12502,142.01,142.0,4.82]
[1728159293182,0.12502,142.01,142.0,14.55]
[1728159296689,0.12502,142.01,142.0,18.0712]
[1728159301193,0.12502,142.01,142.0,4.82]
[1728159301392,3.64602,142.01,142.0,4.82]
[1728159301584,0.12502,142.01,142.0,4.82]
[1728159303079,0.12502,142.01,142.0,18.0712]
[1728159303080,0.00302,142.01,142.0,18.0712]
[1728159303295,0.02464364,142.02,142.0,14.55]
[1728159303498,0.02464364,142.02,142.01,9.73]
[1728159303996,0.02464364,142.02,142.01,13.251]
[1728159310500,0.02464364,142.02,142.0,13.2511]
[1728159310694,0.02464364,142.02,142.01,4.82]
[1728159313791,3.54564364,142.02,142.01,4.82]
[1728159320206,3.54564364,142.02,141.99,18.0715]
[1728159320500,3.54564364,142.02,141.99,14.55]
[1728159320702,3.54564364,142.02,141.99,9.73]
[1728159320904,3.54564364,142.02,141.99,14.55]
[1728159321505,3.521,142.01,141.99,14.55]
[1728159330714,3.521,142.01,141.99,15.63]
[1728159332911,3.521,142.01,141.99,4.82]
[1728159333219,3.5212,142.0,141.99,4.82]
[1728159337613,3.5216,141.99,141.96,4.82]
[1728159337819,10.81,142.0,141.96,4.82]
[1728159338019,10.81,142.0,141.95,15.75502]
[1728159338523,10.81,142.0,141.96,10.81]
[1728159338712,3.5217,141.99,141.96,10.81]
[1728159339025,2.72164364,142.02,141.97,10.81]
[1728159339227,3.5214,142.0,141.97,14.3318]
[1728159344720,13.53164364,142.02,141.97,14.3318]
[1728159345026,3.5215,141.99,141.96,14.3321]
[1728159348034,3.5215,141.99,141.96,3.5221]
[1728159350127,10.81,142.0,141.95,15.75502]
[1728159350330,3.5214,142.0,141.97,3.5219]
[1728159350628,10.81,142.01,141.97,10.81]
[1728159350821,3.5213,142.0,141.97,10.81]
[1728159351529,10.81,142.01,141.96,3.5221]
[1728159351832,3.5215,141.99,141.96,3.5221]
[1728159357343,14.3313,142.0,141.97,3.522]
[1728159358337,14.3313,142.0,141.96,3.5221]
[1728159358538,3.5216,141.99,141.96,3.5221]
[1728159361140,2.72164364,142.02,141.96,3.5221]
[1728159361325,2.72164364,142.02,141.95,15.75502]
[1728159361326,2.72164364,142.02,141.97,10.81]
[1728159361526,13.53164364,142.02,141.98,4.82]
[1728159362137,3.5212,142.01,141.98,8.3417]
[1728159362329,13.53164364,142.02,141.98,8.3417]
[1728159364041,3.5212,142.0,141.98,8.3417]
[1728159367239,3.5212,142.01,141.98,8.3417]
[1728159367438,13.53164364,142.02,141.98,4.82]
[1728159369039,3.5213,142.0,141.98,4.82]
[1728159369837,2.72164364,142.02,141.98,4.82]
[1728159370040,10.81,141.99,141.95,0.12502]
[1728159370246,10.81,141.97,141.95,0.12502]
[1728159370429,4.82,142.01,141.95,0.12502]
[1728159370430,14.3322,141.96,141.95,0.12502]
[1728159370630,10.81,141.96,141.89,10.93502]
[1728159370937,14.3329,141.94,141.91,8.3433]
[1728159372534,14.3329,141.94,141.91,4.82]
[1728159372842,10.81,141.94,141.91,4.82]
[1728159373142,10.81,141.93,141.91,4.82]
[1728159373639,3.5232,141.92,141.91,4.82]
[1728159374032,10.81,141.93,141.89,0.12502]
[1728159374230,10.81,141.93,141.89,4.94502]
[1728159374434,10.81,141.94,141.89,8.46882]
[1728159375435,3.523,141.93,141.89,8.46882]
[1728159376742,2.7968,141.97,141.91,10.81]
[1728159377044,2.7968,141.97,141.93,10.81]
[1728159377247,2.7968,141.97,141.94,3.5225]
[1728159378144,2.7968,141.97,141.95,3.5224]
[1728159379132,4.9284,142.0,141.96,3.5221]
[1728159379336,4.9284,142.0,141.96,8.3421]
[1728159380341,3.5216,141.99,141.96,8.3421]
[1728159384258,12.217,142.0,141.96,8.3421]
[1728159384259,12.217,142.0,141.96,4.82]
[1728159384554,2.90662,142.01,141.97,10.81]
[1728159384954,2.90662,142.01,141.98,14.3316]
[1728159385658,6.42772,142.01,141.98,14.3316]
[1728159386753,6.42772,142.01,141.98,3.5216]
[1728159387257,17.23772,142.01,141.98,3.5216]
[1728159389255,6.42772,142.01,141.98,3.5216]
[1728159394754,0.12502,142.01,141.99,3.5213]
[1728159394961,0.12502,142.01,141.99,10.81]
[1728159395155,0.12502,142.01,141.99,15.65]
[1728159395364,0.12502,142.01,141.99,8.3614]
[1728159395661,0.12502,142.01,141.99,4.84]
[1728159395859,3.64612,142.01,141.99,4.84]
[1728159396162,3.64612,142.01,141.97,10.81]
[1728159396163,0.12502,142.01,141.97,15.65]
[1728159396359,3.64612,142.01,141.97,15.65]
[1728159396663,3.64612,142.01,141.97,19.1717]
[1728159397361,3.64612,142.01,141.97,15.65]
[1728159397554,0.12502,142.01,141.98,3.5217]
[1728159397748,0.12502,142.01,141.98,10.81]
[1728159398153,0.12502,142.01,142.0,3.5212]
[1728159398354,0.12502,142.01,141.98,10.81]
[1728159399253,0.12502,142.01,141.99,3.5213]
[1728159400066,0.12502,142.01,141.98,10.81]
[1728159400255,0.12502,142.01,142.0,3.5212]
[1728159403066,0.12502,142.01,142.0,14.3312]
[1728159404463,0.02464364,142.02,142.01,3.521]
[1728159404665,0.04986826,142.05,142.01,10.81]
[1728159404862,0.04986826,142.05,142.04,10.81]
[1728159405259,0.04986826,142.05,142.04,14.3302]
[1728159405458,0.06624563,142.06,142.04,10.81]
[1728159405666,0.11373208,142.08,142.05,4.84]
[1728159405859,0.11373208,142.08,142.06,10.81]
[1728159406459,0.11373208,142.08,142.06,14.3297]
[1728159406663,0.11373208,142.08,142.06,10.81]
[1728159406869,0.11373208,142.08,142.07,3.5195]
[1728159417177,0.11373208,142.08,142.07,14.3295]
[1728159423589,0.11373208,142.08,142.05,4.84]
[1728159423772,0.11373208,142.08,142.07,14.3295]
[1728159424675,0.1470658,142.1,142.07,10.81]
[1728159424883,0.1470658,142.1,142.09,14.329]
[1728159425084,0.18333164,142.12,142.09,15.69]
[1728159425281,0.18333164,142.12,142.1,10.81]
[1728159425982,0.18333164,142.12,142.1,14.3288]
[1728159428091,0.18333164,142.12,142.1,10.81]
[1728159428275,0.12502,142.13,142.1,10.81]
[1728159428483,0.12502,142.13,142.12,10.81]
[1728159428785,0.12502,142.13,142.12,19.2083]
[1728159430086,0.15347919,142.14,142.12,15.69]
[1728159430298,0.15347919,142.14,142.13,14.328]
[1728159431180,0.16816447,142.15,142.13,10.81]
[1728159431380,0.16816447,142.15,142.14,14.3278]
[1728159432681,0.23919067,142.17,142.15,3.5175]
[1728159432883,0.23919067,142.17,142.16,15.69]
[1728159433189,0.33465502,142.19,142.16,15.69]
[1728159433396,0.33465502,142.19,142.18,10.81]
[1728159433894,0.33465502,142.19,142.18,3.5168]
[1728159434090,0.33465502,142.19,142.13,96.53630761]
[1728159434292,0.33465502,142.19,142.17,3.517]
[1728159434487,11.14465502,142.19,142.18,4.88]
[1728159434690,13.90825502,142.19,142.15,10.81]
[1728159434997,13.90825502,142.19,142.16,4.88]
[1728159436097,3.5168,142.18,142.16,4.88]
[1728159439399,3.517,142.17,142.16,4.88]
[1728159439603,3.09825502,142.19,142.16,15.69]
[1728159439798,3.09825502,142.19,142.17,10.81]
[1728159439990,6.61495502,142.19,142.16,15.69]
[1728159441404,6.61495502,142.19,142.16,19.2072]
[1728159441604,1.74545502,142.19,142.17,10.81]
[1728159441801,0.33465502,142.19,142.18,10.81]
[1728159442105,0.33465502,142.19,142.18,14.3268]
[1728159446702,0.33465502,142.19,142.18,10.81]
[1728159448411,0.33465502,142.19,142.17,10.81]
[1728159448614,0.33465502,142.19,142.17,4.94]
[1728159448808,3.5168,142.18,142.17,4.94]
[1728159449708,3.517,142.17,142.15,10.81]
[1728159449907,3.517,142.17,142.16,4.94]
[1728159456219,3.517,142.17,142.13,3.518]
[1728159456220,10.81,142.17,142.14,4.94]
[1728159456422,10.81,142.16,142.13,4.94]
[1728159456717,4.953,142.18,142.14,14.3276]
[1728159456924,1.4362,142.18,142.14,10.81]
[1728159457514,1.4362,142.18,142.13,4.94]
[1728159457515,12.2462,142.18,142.13,15.75]
[1728159457814,3.5171,142.17,142.13,15.75]
[1728159458014,12.2462,142.18,142.13,15.75]
[1728159458622,10.81,142.17,142.13,4.94]
[1728159459318,3.5177,142.15,142.13,4.94]
[1728159460217,3.517,142.17,142.14,3.5177]
[1728159460519,3.517,142.17,142.14,20.70526435]
[1728159460825,3.517,142.17,142.14,14.3277]
[1728159461524,3.517,142.17,142.14,20.70517584]
[1728159462619,1.4362,142.18,142.15,14.3274]
[1728159462827,1.4362,142.18,142.16,4.94]
[1728159464025,4.953,142.18,142.16,4.94]
[1728159464831,12.2462,142.18,142.16,4.94]
[1728159465019,3.517,142.17,142.16,4.94]
[1728159469624,3.517,142.17,142.16,11.33413283]
[1728159469825,3.517,142.17,142.16,4.94]
[1728159470233,3.517,142.17,142.16,11.33413283]
[1728159471228,1.4362,142.18,142.16,11.33413283]
[1728159471434,1.4362,142.18,142.17,6.39413283]
[1728159472524,1.4362,142.18,142.16,4.94]
[1728159473121,4.953,142.18,142.16,4.94]
[1728159473326,4.953,142.18,142.17,6.40525389]
[1728159476026,4.953,142.18,142.16,4.94]
[1728159476027,3.517,142.17,142.16,4.94]
[1728159476231,3.517,142.17,142.16,11.35366961]
[1728159477436,3.517,142.17,142.16,6.41366961]
[1728159479337,12.2462,142.18,142.14,4.98]
[1728159479529,3.5175,142.16,142.14,4.98]
[1728159479736,3.5175,142.16,142.15,6.41614596]
[1728159481939,3.5175,142.16,142.15,6.41745959]
[1728159482145,3.5175,142.16,142.14,4.98]
[1728159482527,3.5175,142.16,142.15,6.4174596]
[1728159487443,14.3275,142.16,142.15,6.4174596]
[1728159488951,3.5179,142.14,142.12,4.98]
[1728159489245,3.5179,142.14,142.13,6.42424711]
[1728159489840,14.3279,142.14,142.13,6.42424711]
[1728159490853,3.519,142.09,142.07,0.12502]
[1728159491037,10.81,142.11,142.07,5.10502]
[1728159491551,3.5192,142.09,142.07,5.10502]
[1728159491935,3.5192,142.09,142.07,0.12502]
[1728159492541,3.5188,142.1,142.07,10.93502]
[1728159494143,3.5188,142.1,142.07,14.45442]
[1728159495058,3.519,142.09,142.07,0.12502]
[1728159496946,3.5185,142.11,142.08,3.5192]
[1728159497350,12.1209,142.13,142.08,3.5192]
[1728159497545,3.5183,142.12,142.09,3.519]
[1728159497854,3.5183,142.12,142.09,8.499]
[1728159498355,15.639,142.13,142.09,8.499]
[1728159499159,4.829,142.13,142.09,4.98]
[1728159499362,4.829,142.13,142.1,3.5186]
[1728159500355,3.5176,142.15,142.12,3.5182]
[1728159500544,14.3276,142.15,142.12,3.5182]
[1728159501047,82.92317069,142.16,142.11,10.81]
[1728159501250,82.92317069,142.16,142.12,15.73]
[1728159502052,86.44047069,142.16,142.13,3.518]
[1728159502251,3.5173,142.16,142.13,3.518]
[1728159504550,3.5173,142.16,142.13,14.328]
[1728159505863,1.3816,142.17,142.14,3.5177]
[1728159505864,4.8986,142.17,142.14,3.5177]
[1728159506159,11.14465502,142.19,142.15,10.81]
[1728159506363,11.14465502,142.19,142.15,15.73]
[1728159506567,3.5169,142.18,142.15,19.2475]
[1728159507059,3.85135502,142.19,142.16,14.3272]
[1728159507558,0.33465502,142.19,142.16,14.3272]
[1728159510554,0.33465502,142.19,142.17,3.517]
[1728159511760,0.33465502,142.19,142.18,4.92]
[1728159512461,0.33465502,142.19,142.18,8.4368]
[1728159514057,0.33465502,142.19,142.12,23.8405]
[1728159514263,11.14465502,142.19,142.14,10.81]
[1728159514461,10.81,142.18,142.14,15.73]
[1728159514668,3.5171,142.17,142.14,15.73]
[1728159515465,3.5173,142.16,142.13,10.81]
[1728159515656,10.81,142.16,142.13,4.92]
[1728159516057,10.81,142.14,142.1,10.81]
[1728159516360,10.81,142.14,142.11,4.92]
[1728159516661,3.5183,142.12,142.11,4.92]
[1728159516864,14.3283,142.12,142.11,4.92]
[1728159517066,14.3283,142.12,142.07,3.64452]
[1728159517067,10.81,142.12,142.08,4.92]
[1728159517866,3.5187,142.11,142.08,4.92]
[1728159525464,3.5187,142.11,142.08,8.4393]
[1728159526370,3.5187,142.11,142.08,4.92]
[1728159527969,3.5189,142.1,142.08,4.92]
[1728159529166,3.5189,142.1,142.07,3.64442]
[1728159529969,3.5189,142.1,142.07,0.12502]
[1728159530966,16.87,142.12,142.07,0.12502]
[1728159531174,3.5193,142.08,142.07,0.12502]
[1728159540887,20.3893,142.08,142.07,0.12502]
[1728159541386,20.3893,142.08,142.07,1e-08]
[1728159541581,14.3293,142.08,142.07,1e-08]
[1728159542278,3.5207,142.03,142.01,0.12502]
[1728159542590,14.3307,142.03,142.01,0.12502]
[1728159543888,3.5207,142.03,142.01,0.12502]
[1728159546183,14.3307,142.02,142.01,0.12502]
[1728159547279,14.3307,142.02,141.97,4.86]
[1728159547280,3.5217,141.98,141.97,4.86]
[1728159547488,3.5217,141.98,141.95,8.50732]
[1728159547788,3.522,141.97,141.95,0.12502]
[1728159549094,14.332,141.97,141.95,0.12502]
[1728159550301,10.81,141.98,141.95,0.12502]
[1728159550599,3.5218,141.98,141.95,3.64742]
[1728159557607,4.86,142.01,141.96,3.5221]
[1728159557906,10.81,142.0,141.96,3.5221]
[1728159558609,14.3313,142.0,141.96,3.5221]
[1728159564501,14.3315,141.99,141.96,3.5221]
[1728159566800,10.81,141.98,141.95,4.98502]
[1728159567104,10.81,141.97,141.95,0.12502]
[1728159567507,3.5222,141.96,141.95,0.12502]
[1728159571808,10.81,141.97,141.95,0.12502]
[1728159572011,3.5221,141.97,141.95,0.12502]
[1728159572510,3.5222,141.96,141.95,0.12502]
[1728159578019,3.5221,141.97,141.95,0.12502]
[1728159578514,0.6926,141.96,141.95,0.12502]
[1728159579318,0.6926,141.96,141.95,10.93502]
[1728159579514,10.81,142.01,141.95,15.77502]
[1728159579712,10.81,142.03,141.97,10.81]
[1728159580113,14.3307,142.03,141.99,3.5213]
[1728159580611,8.9892,142.05,141.98,10.81]
[1728159580827,10.81,142.03,141.98,15.65]
[1728159581923,3.5209,142.02,141.99,3.5214]
[1728159583114,3.5209,142.02,141.98,15.65]
[1728159583319,3.5209,142.02,141.98,19.1716]
[1728159583622,3.5212,142.01,141.98,15.65]
[1728159583814,3.5212,142.01,141.98,4.84]
[1728159587125,3.5212,142.01,141.98,8.3617]
[1728159587925,10.81,142.03,141.99,3.5213]
[1728159588927,14.3307,142.03,141.99,3.5213]
[1728159589534,3.5203,142.04,142.01,3.521]
[1728159589830,3.5203,142.04,142.0,10.81]
[1728159590418,3.5203,142.04,142.0,14.3311]
[1728159590634,3.5205,142.03,142.0,14.3311]
[1728159590819,10.81,142.03,141.98,4.84]
[1728159591821,4.1492,142.05,141.98,4.84]
[1728159592030,10.81,142.03,141.98,4.84]
[1728159592445,3.5209,142.02,141.99,3.5213]
[1728159593331,3.5211,142.01,141.98,8.3616]
[1728159594230,3.5211,142.01,141.97,15.65]
[1728159594430,3.5211,142.01,141.97,19.1718]
[1728159596342,14.3311,142.01,141.97,8.3618]
[1728159596531,3.5219,141.98,141.95,3.64742]
[1728159596836,10.81,141.99,141.95,4.96502]
[1728159597040,3.5213,142.0,141.97,3.5218]
[1728159597233,10.81,142.01,141.97,3.5218]
[1728159597436,10.81,142.02,141.97,3.5218]
[1728159598333,10.81,142.02,141.99,3.5214]
[1728159598334,3.5208,142.02,141.99,3.5214]
[1728159599436,3.5209,142.02,141.98,15.65]
[1728159599837,10.81,142.03,141.98,15.65]
[1728159600142,10.81,142.03,141.98,19.1716]
[1728159600345,3.521,142.01,141.98,19.1716]
[1728159601033,10.81,142.0,141.95,0.12502]
[1728159601228,10.81,141.99,141.95,0.12502]
[1728159601426,12.2337,141.99,141.95,0.12502]
[1728159601630,3.5222,141.97,141.95,0.12502]
[1728159601837,12.2337,141.99,141.95,0.12502]
[1728159602246,14.3321,141.97,141.95,0.12502]
[1728159603841,3.5222,141.96,141.95,0.12502]
[1728159604146,14.3322,141.96,141.95,0.12502]
[1728159615046,3.5222,141.96,141.95,0.12502]
[1728159615445,14.3322,141.96,141.95,0.12502]
[1728159616748,10.81,141.98,141.95,0.12502]
[1728159617352,12.2337,141.99,141.96,3.5221]
[1728159617554,12.2337,141.99,141.95,0.12502]
[1728159617849,15.7552,141.99,141.96,3.5221]
[1728159619457,14.3317,141.98,141.95,3.64742]
[1728159620962,10.81,141.97,141.95,0.12502]
[1728159621252,10.81,141.96,141.95,0.12502]
[1728159621652,14.3322,141.96,141.95,0.12502]
[1728159651674,3.5231,141.93,141.89,8.50882]
[1728159651884,10.81,141.92,141.89,8.50882]
[1728159652473,10.81,141.92,141.89,0.12502]
[1728159652670,10.81,141.9,141.89,0.12502]
[1728159653066,14.3337,141.9,141.89,0.12502]
[1728159660681,14.3334,141.92,141.89,0.12502]
[1728159662381,10.81,141.92,141.89,3.64892]
[1728159663981,10.81,141.92,141.89,0.12502]
[1728159664194,14.3333,141.92,141.89,0.12502]
[1728159664486,10.81,141.92,141.89,0.12502]
[1728159664690,14.3335,141.91,141.89,0.12502]
[1728159665290,3.5237,141.9,141.89,0.12502]
[1728159666287,14.3337,141.9,141.89,0.12502]
[1728159668680,3.5244,141.88,141.84,2.6323]
[1728159668990,14.3344,141.88,141.84,2.6323]
[1728159670190,14.3344,141.88,141.84,6.1573]
[1728159673991,10.81,141.88,141.84,6.1573]
[1728159674288,3.5245,141.87,141.84,2.6323]
[1728159676587,3.5245,141.87,141.84,6.1575]
[1728159677790,3.5245,141.87,141.84,2.6323]
[1728159679211,3.5245,141.87,141.84,6.1575]
[1728159679389,3.5245,141.87,141.84,1.3078]
[1728159679591,10.81,141.86,141.84,1.3078]
[1728159680395,10.81,141.86,141.83,4.94502]
[1728159680598,3.525,141.85,141.83,0.12502]
[1728159680792,4.82,141.89,141.83,0.12502]
[1728159680793,10.81,141.84,141.83,0.12502]
[1728159680996,14.3352,141.84,141.83,0.12502]
[1728159683095,3.5259,141.82,141.77,3.65182]
[1728159683290,10.81,141.81,141.77,3.65182]
[1728159683899,14.3361,141.81,141.77,3.65182]
[1728159684493,10.81,141.81,141.77,3.65182]
[1728159684698,3.5262,141.8,141.77,3.65182]
[1728159685099,3.5262,141.8,141.77,0.12502]
[1728159686307,10.81,141.79,141.77,0.12502]
[1728159687608,3.5267,141.78,141.77,0.12502]
[1728159687914,10.81,141.79,141.77,0.12502]
[1728159688109,14.3366,141.79,141.77,0.12502]
[1728159688411,10.81,141.78,141.77,0.12502]
[1728159688810,14.3367,141.78,141.77,0.12502]
[1728159695912,3.5267,141.78,141.77,0.12502]
[1728159696214,14.3367,141.78,141.77,0.12502]
[1728159703517,64.3367,141.78,141.77,0.12502]
[1728159705424,64.3367,141.78,141.77,1e-08]
[1728159706723,53.5267,141.78,141.77,1e-08]
[1728159706915,64.3367,141.78,141.77,1e-08]
[1728159708131,50.0,141.78,141.77,1e-08]
[1728159708424,60.81,141.78,141.77,1e-08]
[1728159709418,64.3367,141.78,141.77,1e-08]
[1728159717725,69.1767,141.78,141.77,1e-08]
[1728159721628,64.3367,141.78,141.77,1e-08]
[1728159723121,53.5267,141.78,141.77,1e-08]
[1728159723329,60.81,141.78,141.77,1e-08]
[1728159724628,64.3367,141.78,141.77,1e-08]
[1728159725228,53.5267,141.78,141.77,1e-08]
[1728159725429,64.3367,141.78,141.77,1e-08]
[1728159726933,60.81,141.78,141.77,1e-08]
[1728159728037,50.0,141.78,141.77,1e-08]
[1728159728538,50.0,141.78,141.77,3.52700001]
[1728159731147,60.81,141.78,141.77,1e-08]
[1728159732138,64.3367,141.78,141.77,1e-08]
[1728159734847,53.5267,141.78,141.77,1e-08]
[1728159735051,50.0,141.78,141.77,1e-08]
[1728159735253,60.81,141.78,141.77,1e-08]
[1728159736041,50.0,141.78,141.77,1e-08]
[1728159736346,60.81,141.78,141.77,1e-08]
[1728159737839,60.81,141.78,141.77,3.52700001]
[1728159739056,50.0,141.78,141.77,3.52700001]
[1728159739656,50.0,141.78,141.77,1e-08]
[1728159740358,60.81,141.78,141.77,1e-08]
[1728159741055,64.3367,141.78,141.77,1e-08]
[1728159743143,60.81,141.78,141.77,1e-08]
[1728159751563,64.3367,141.78,141.77,1e-08]
[1728159753365,65.7343,141.78,141.77,1e-08]
[1728159754877,3.5273,141.76,141.72,3.5281]
[1728159755080,10.81,141.74,141.72,3.5281]
[1728159755683,10.81,141.74,141.71,7.83682]
[1728159755874,10.81,141.74,141.71,11.36512]
[1728159756178,10.81,141.74,141.71,7.83682]
[1728159756372,50.0,141.78,141.72,10.81]
[1728159756573,10.81,141.77,141.72,10.81]
[1728159757983,14.337,141.77,141.74,3.5275]
[1728159758277,3.527,141.77,141.74,3.5275]
[1728159758583,14.337,141.77,141.74,3.5275]
[1728159758879,3.527,141.77,141.74,3.5275]
[1728159759080,50.0,141.78,141.76,3.5272]
[1728159759282,50.0,141.78,141.73,15.67]
[1728159759283,50.0,141.78,141.75,10.81]
[1728159760185,45.6472,141.78,141.77,3.527]
[1728159760385,41.2983,141.78,141.77,3.527]
[1728159760686,41.2983,141.78,141.77,14.337]
[1728159761285,39.00071291,141.78,141.77,14.337]
[1728159766089,39.00071291,141.78,141.77,17.78733442]
[1728159767878,39.00071291,141.78,141.77,14.337]
[1728159772689,39.00071291,141.78,141.77,3.527]
[1728159772895,39.00071291,141.78,141.77,14.337]
[1728159774195,39.00071291,141.78,141.77,17.91890594]
[1728159780802,2.6517,141.86,141.77,35.50190594]
[1728159781001,2.6517,141.86,141.82,14.3357]
[1728159781189,2.6517,141.86,141.82,19.1957]
[1728159786299,1.3145,141.86,141.82,19.1957]
[1728159786498,1.4182,141.88,141.82,19.1957]
[1728159791108,13.537,141.88,141.82,19.1957]
[1728159792508,0.81762,141.83,141.82,19.1957]
[1728159794704,0.81762,141.83,141.82,8.3857]